bitfinex-derivatives/quotes_SOLF0:USTF0_20240927
["timestamp","ask_amount","ask_price","bid_price","bid_amount"]
[1727465627735,9.73,157.65,157.57,3.8745]
[1727465628028,9.73,157.61,157.57,1.3362]
[1727465629438,3.1721,157.59,157.57,1.3362]
[1727465630130,3.1721,157.58,157.57,1.3362]
[1727465632729,3.1721,157.58,157.56,9.73]
[1727465636343,3.1721,157.58,157.57,9.73]
[1727465642355,9.73,157.66,157.57,9.73]
[1727465642539,9.73,157.66,157.61,9.73]
[1727465642735,3.1713,157.62,157.61,9.73]
[1727465642947,9.73,157.66,157.6,9.73]
[1727465643345,9.73,157.64,157.6,9.73]
[1727465643542,9.73,157.62,157.55,1.2595]
[1727465643746,9.73,157.6,157.55,1.2595]
[1727465643953,9.73,157.6,157.55,10.9895]
[1727465644565,3.1725,157.57,157.56,9.73]
[1727465645848,3.1722,157.58,157.56,9.73]
[1727465646048,3.1722,157.58,157.57,9.73]
[1727465647540,1.0529,157.66,157.57,9.73]
[1727465647743,10.7829,157.66,157.61,9.73]
[1727465647944,10.7829,157.66,157.6,9.73]
[1727465648249,3.1715,157.61,157.6,9.73]
[1727465648845,2.6194,157.67,157.6,9.73]
[1727465649144,9.73,157.69,157.64,9.73]
[1727465649353,3.1707,157.65,157.64,9.73]
[1727465649648,9.73,157.68,157.63,9.73]
[1727465649854,9.73,157.67,157.63,9.73]
[1727465650051,9.73,157.67,157.62,9.73]
[1727465650452,9.73,157.66,157.61,9.73]
[1727465650951,3.1713,157.62,157.61,9.73]
[1727465653558,3.1719,157.6,157.59,9.73]
[1727465656661,3.1722,157.58,157.55,1.2595]
[1727465656856,3.1722,157.58,157.57,9.73]
[1727465657059,9.73,157.61,157.54,54.00127698]
[1727465657257,2.6695,157.66,157.53,9.73]
[1727465657258,9.73,157.59,157.53,9.73]
[1727465658061,3.1727,157.56,157.53,12.97899327]
[1727465658261,3.1727,157.56,157.54,9.73]
[1727465659762,3.1727,157.56,157.55,9.73]
[1727465661558,3.1729,157.55,157.52,3.13409466]
[1727465661755,3.1729,157.55,157.54,9.73]
[1727465665264,2.6695,157.66,157.54,9.73]
[1727465665470,9.73,157.62,157.57,9.73]
[1727465666163,3.1721,157.58,157.57,9.73]
[1727465674477,3.1726,157.56,157.53,1.2962]
[1727465674677,3.1726,157.56,157.55,9.73]
[1727465677092,3.1729,157.55,157.54,9.73]
[1727465677586,3.1729,157.55,157.53,1.2962]
[1727465677786,3.1729,157.55,157.54,9.73]
[1727465679287,6.3415,157.65,157.54,9.73]
[1727465679600,2.6695,157.66,157.63,9.73]
[1727465680196,3.1718,157.6,157.55,1.3735]
[1727465680397,3.1718,157.6,157.59,9.73]
[1727465682987,3.1714,157.62,157.59,9.73]
[1727465683182,3.1714,157.62,157.61,9.73]
[1727465686491,9.73,157.64,157.55,1.3735]
[1727465686701,1.3688,157.66,157.58,9.73]
[1727465686702,9.73,157.63,157.58,9.73]
[1727465687096,3.1719,157.59,157.58,9.73]
[1727465687496,9.73,157.61,157.54,1.3831]
[1727465687799,9.73,157.6,157.55,9.73]
[1727465688490,9.73,157.57,157.52,9.73]
[1727465689086,9.73,157.57,157.53,9.73]
[1727465689701,3.173,157.54,157.53,9.73]
[1727465691903,9.73,157.57,157.52,9.73]
[1727465693008,3.1732,157.53,157.52,9.73]
[1727465693306,1.3106,157.59,157.52,9.73]
[1727465693499,1.3106,157.59,157.55,9.73]
[1727465693704,3.1726,157.56,157.55,9.73]
[1727465694496,11.0406,157.59,157.54,9.73]
[1727465695113,3.1728,157.55,157.54,9.73]
[1727465699109,9.73,157.58,157.44,2.5793]
[1727465699506,9.73,157.58,157.52,9.73]
[1727465699706,3.1732,157.53,157.52,9.73]
[1727465701217,3.1735,157.52,157.5,3.11521426]
[1727465701418,3.1735,157.52,157.51,9.73]
[1727465702018,1.3106,157.59,157.51,9.73]
[1727465702216,1.3106,157.59,157.55,9.73]
[1727465702421,1.3106,157.59,157.54,9.73]
[1727465702613,3.1728,157.55,157.54,9.73]
[1727465702815,9.73,157.57,157.46,54.03084904]
[1727465703011,9.73,157.57,157.52,9.73]
[1727465703215,9.73,157.56,157.52,9.73]
[1727465703415,3.1732,157.53,157.52,9.73]
[1727465709328,3.173,157.54,157.52,9.73]
[1727465709526,3.173,157.54,157.53,9.73]
[1727465711920,3.1735,157.52,157.46,54.03084904]
[1727465712122,3.1735,157.52,157.51,9.73]
[1727465717533,9.73,157.58,157.51,9.73]
[1727465717731,9.73,157.58,157.54,9.73]
[1727465718138,3.1728,157.55,157.54,9.73]
[1727465721730,9.73,157.56,157.46,57.21716789]
[1727465721929,1.3106,157.59,157.47,9.73]
[1727465721930,9.73,157.53,157.47,9.73]
[1727465722326,9.73,157.5,157.44,2.5793]
[1727465722532,9.73,157.5,157.44,14.21385015]
[1727465722926,3.1748,157.45,157.44,14.21385015]
[1727465723139,9.73,157.5,157.43,1.3212]
[1727465723339,9.73,157.49,157.44,9.73]
[1727465723843,9.73,157.48,157.43,9.73]
[1727465724341,3.175,157.44,157.43,9.73]
[1727465724935,9.73,157.48,157.42,9.73]
[1727465725137,9.73,157.46,157.37,2.6092]
[1727465725339,9.73,157.46,157.41,9.73]
[1727465725534,3.1754,157.42,157.41,9.73]
[1727465735756,7.4026,157.51,157.41,9.73]
[1727465735951,6.3472,157.51,157.46,9.73]
[1727465736250,16.0772,157.51,157.46,9.73]
[1727465736452,3.1744,157.47,157.46,9.73]
[1727465737044,3.1746,157.46,157.45,9.73]
[1727465738453,3.1748,157.45,157.44,9.73]
[1727465740848,3.1752,157.43,157.42,3.1694003]
[1727465741050,9.73,157.48,157.42,9.73]
[1727465741356,3.1748,157.45,157.44,9.73]
[1727465741769,9.73,157.45,157.37,2.6092]
[1727465742059,3.1762,157.38,157.37,2.6092]
[1727465742252,3.1762,157.38,157.37,5.78252816]
[1727465743362,3.1762,157.38,157.37,12.90332816]
[1727465744246,3.1762,157.38,157.37,3.17332816]
[1727465744452,3.1762,157.38,157.34,15.26]
[1727465747962,3.1764,157.37,157.34,15.26]
[1727465748663,3.1766,157.36,157.35,3.25353674]
[1727465748868,15.26,157.4,157.27,71.78717683]
[1727465749164,15.26,157.4,157.29,15.26]
[1727465749566,16.5652,157.4,157.29,15.26]
[1727465749963,1.3052,157.4,157.34,15.26]
[1727465751863,1.2947,157.41,157.34,15.26]
[1727465752860,3.1763,157.38,157.34,15.26]
[1727465753065,1.2947,157.41,157.36,15.26]
[1727465754166,3.1764,157.37,157.36,15.26]
[1727465760775,93.47924431,157.45,157.36,15.26]
[1727465760979,93.47924431,157.45,157.41,15.26]
[1727465761369,3.1754,157.42,157.41,15.26]
[1727465762578,93.47924431,157.45,157.39,15.26]
[1727465763079,3.1758,157.4,157.39,15.26]
[1727465764678,1.3092,157.46,157.39,15.26]
[1727465764874,1.3092,157.46,157.38,3.23672144]
[1727465764875,1.3092,157.46,157.41,15.26]
[1727465765274,1.3092,157.46,157.36,1.2812]
[1727465765473,6.3498,157.45,157.35,3.11091248]
[1727465765679,15.26,157.43,157.34,18.42619218]
[1727465765877,15.26,157.41,157.32,15.26]
[1727465766080,1.2793,157.4,157.32,15.26]
[1727465766383,1.2793,157.4,157.31,3.13871864]
[1727465766384,3.1774,157.33,157.31,3.13871864]
[1727465766574,3.1774,157.33,157.28,1.3846]
[1727465766774,3.1774,157.33,157.32,9.77]
[1727465767478,3.1771,157.34,157.32,9.77]
[1727465767679,3.1771,157.34,157.33,9.77]
[1727465768376,3.1771,157.34,157.32,15.26]
[1727465769690,3.1772,157.33,157.32,15.26]
[1727465770380,3.1774,157.32,157.31,3.15627833]
[1727465770582,3.1774,157.32,157.31,15.26]
[1727465770781,3.1774,157.32,157.31,3.14007111]
[1727465770975,3.1774,157.32,157.31,15.26]
[1727465771181,3.1774,157.32,157.31,18.40738025]
[1727465772286,3.1773,157.33,157.31,18.40738025]
[1727465777486,3.1773,157.33,157.31,15.26]
[1727465777689,3.1774,157.32,157.31,15.26]
[1727465780082,22.8909,157.4,157.31,15.26]
[1727465780083,3.1765,157.37,157.31,15.26]
[1727465780287,1.2793,157.4,157.35,15.26]
[1727465781087,3.1766,157.36,157.35,15.26]
[1727465781283,1.2793,157.4,157.33,15.26]
[1727465781482,3.177,157.34,157.33,15.26]
[1727465790293,3.177,157.34,157.33,9.76]
[1727465797612,1.2793,157.4,157.33,9.76]
[1727465797810,1.3453,157.42,157.39,9.76]
[1727465798309,1.3453,157.42,157.28,1.3846]
[1727465798310,1.3453,157.42,157.38,9.76]
[1727465798502,1.3453,157.42,157.28,1.3846]
[1727465798703,11.1053,157.42,157.37,9.76]
[1727465798896,9.76,157.38,157.28,1.3846]
[1727465799100,9.76,157.38,157.33,9.76]
[1727465799314,3.177,157.34,157.33,9.76]
[1727465808413,3.1774,157.32,157.31,3.24188169]
[1727465808614,3.1774,157.32,157.31,9.76]
[1727465808920,3.1774,157.32,157.31,12.92557894]
[1727465809922,9.76,157.36,157.27,2.5869]
[1727465810117,9.76,157.34,157.29,9.76]
[1727465810625,90.80378684,157.49,157.33,9.76]
[1727465810816,103.25513068,157.43,157.38,9.76]
[1727465811026,93.49513068,157.43,157.39,9.76]
[1727465811715,96.67033068,157.43,157.4,9.76]
[1727465813720,93.49513068,157.43,157.4,9.76]
[1727465814025,93.49513068,157.43,157.42,9.76]
[1727465814416,93.49513068,157.43,157.42,3.1754]
[1727465815314,93.49513068,157.43,157.41,3.1755]
[1727465816215,93.49513068,157.43,157.4,3.1757]
[1727465817723,96.67033068,157.43,157.4,3.1757]
[1727465819116,93.49513068,157.43,157.4,3.1757]
[1727465819525,93.49513068,157.43,157.41,3.1756]
[1727465819724,1.379,157.46,157.42,15.24]
[1727465820125,1.379,157.46,157.43,3.175]
[1727465820925,4.5537,157.46,157.43,3.175]
[1727465821825,4.5537,157.46,157.44,3.175]
[1727465827626,1.379,157.46,157.44,3.175]
[1727465828625,19.04,157.63,157.44,15.24]
[1727465828926,19.04,157.63,157.4,15.24]
[1727465828927,4.61226838,157.53,157.46,15.24]
[1727465829129,3.1737,157.51,157.48,3.174]
[1727465829931,3.1738,157.5,157.47,3.1743]
[1727465832730,3.1738,157.5,157.48,3.1742]
[1727465834027,1.3746,157.53,157.49,3.1739]
[1727465834438,1.3746,157.53,157.5,9.76]
[1727465835244,3.1735,157.52,157.5,9.76]
[1727465836739,3.1738,157.5,157.43,3.18805219]
[1727465837035,3.1738,157.5,157.49,9.76]
[1727465837336,1.3746,157.53,157.49,9.76]
[1727465837835,1.3746,157.53,157.5,9.76]
[1727465838338,3.1735,157.52,157.5,9.76]
[1727465839635,4.5479,157.53,157.5,12.9336]
[1727465839841,1.3746,157.53,157.5,12.9336]
[1727465840240,3.1734,157.52,157.5,12.9336]
[1727465843541,93.42079697,157.56,157.51,12.9336]
[1727465843738,93.42079697,157.56,157.53,9.76]
[1727465844130,93.42079697,157.56,157.54,9.76]
[1727465845138,96.59339697,157.56,157.54,9.76]
[1727465845339,93.42079697,157.56,157.54,9.76]
[1727465845534,96.59339697,157.56,157.54,9.76]
[1727465845945,96.59339697,157.56,157.54,12.933]
[1727465846547,96.59339697,157.56,157.54,9.76]
[1727465846742,93.42079697,157.56,157.54,9.76]
[1727465847048,93.42079697,157.56,157.55,12.9328]
[1727465848154,68.6,157.62,157.55,9.76]
[1727465848340,68.6,157.62,157.59,9.76]
[1727465848541,3.1715,157.62,157.59,9.76]
[1727465848740,12.3961,157.64,157.59,9.76]
[1727465849765,3.1717,157.61,157.59,9.76]
[1727465849968,93.37419713,157.63,157.59,9.76]
[1727465851561,3.1717,157.61,157.59,9.76]
[1727465852558,3.1717,157.6,157.59,9.76]
[1727465854861,9.76,157.6,157.48,1.3693]
[1727465855068,9.76,157.57,157.53,9.76]
[1727465855269,3.1727,157.56,157.53,12.9331]
[1727465855971,3.1727,157.56,157.54,9.76]
[1727465857063,3.1724,157.57,157.55,9.76]
[1727465857270,9.76,157.61,157.56,9.76]
[1727465857871,3.1723,157.58,157.56,9.76]
[1727465858470,3.1723,157.57,157.56,9.76]
[1727465860173,3.1722,157.58,157.56,9.76]
[1727465861174,3.172,157.59,157.57,9.76]
[1727465861469,103.14223283,157.62,157.57,9.76]
[1727465864080,3.1721,157.58,157.57,9.76]
[1727465865173,9.76,157.61,157.49,3.24220857]
[1727465865376,9.76,157.58,157.54,9.76]
[1727465865771,3.1728,157.55,157.54,9.76]
[1727465866370,3.1726,157.56,157.54,9.76]
[1727465867878,3.1728,157.55,157.54,9.76]
[1727465868077,9.76,157.55,157.48,1.3693]
[1727465868277,9.76,157.55,157.49,9.76]
[1727465868786,9.76,157.52,157.48,1.3693]
[1727465869275,9.76,157.54,157.49,9.76]
[1727465869478,3.1735,157.52,157.49,12.9339]
[1727465873476,3.1736,157.51,157.49,12.9339]
[1727465876784,3.1736,157.51,157.48,4.5434]
[1727465877087,9.76,157.51,157.41,54.03972589]
[1727465877287,9.76,157.51,157.45,12.9346]
[1727465877588,3.1742,157.48,157.45,9.76]
[1727465877785,9.76,157.5,157.42,3.8873]
[1727465877983,9.76,157.5,157.44,9.76]
[1727465878183,3.1745,157.47,157.44,9.76]
[1727465878388,9.76,157.5,157.44,9.76]
[1727465878688,3.1743,157.48,157.46,9.76]
[1727465883292,9.76,157.5,157.42,2.6162]
[1727465883586,9.76,157.48,157.43,9.76]
[1727465883982,3.1747,157.46,157.44,3.1749]
[1727465884685,3.1747,157.46,157.44,12.9349]
[1727465884885,3.1744,157.47,157.45,9.76]
[1727465886792,3.1744,157.47,157.45,12.9348]
[1727465887593,9.76,157.5,157.45,12.9348]
[1727465887594,3.1743,157.48,157.45,12.9348]
[1727465889294,3.1743,157.48,157.46,3.1745]
[1727465889491,3.174,157.49,157.47,9.76]
[1727465889895,3.1742,157.48,157.47,9.76]
[1727465892701,3.1742,157.48,157.45,12.9347]
[1727465893495,3.1742,157.48,157.46,3.1745]
[1727465897206,3.174,157.49,157.46,3.1745]
[1727465901806,1.3862,157.55,157.48,9.76]
[1727465902114,9.76,157.53,157.49,9.76]
[1727465902317,1.3862,157.55,157.49,12.9339]
[1727465902516,9.76,157.54,157.49,12.9339]
[1727465902901,3.1735,157.52,157.49,12.9339]
[1727465903107,9.76,157.54,157.49,12.9339]
[1727465903813,3.1736,157.51,157.49,12.9339]
[1727465904011,1.3452,157.57,157.5,9.76]
[1727465904320,9.76,157.58,157.53,9.76]
[1727465906816,3.1729,157.55,157.53,9.76]
[1727465907015,9.76,157.58,157.53,12.9331]
[1727465907211,9.76,157.58,157.53,3.1731]
[1727465907415,3.1726,157.56,157.54,9.76]
[1727465908012,3.1726,157.56,157.55,9.76]
[1727465913026,9.76,157.58,157.49,1.2581]
[1727465913216,9.76,157.57,157.52,9.76]
[1727465913728,3.1729,157.55,157.52,12.9334]
[1727465918021,3.1729,157.55,157.54,9.76]
[1727465919130,3.1729,157.55,157.54,9.71183961]
[1727465921630,3.1726,157.56,157.54,9.71183961]
[1727465921827,12.3636936,157.61,157.56,9.76]
[1727465922133,3.1721,157.58,157.57,9.76]
[1727465926434,11.1090936,157.61,157.57,9.76]
[1727465926435,3.172,157.59,157.57,9.76]
[1727465926634,3.172,157.59,157.58,9.76]
[1727465927434,3.1722,157.58,157.57,9.76]
[1727465927935,3.172,157.59,157.57,9.76]
[1727465928437,9.8538936,157.61,157.58,12.9321]
[1727465928735,9.8538936,157.61,157.6,9.76]
[1727465929238,13.0254936,157.61,157.6,9.76]
[1727465929929,3.1716,157.61,157.6,9.76]
[1727465930431,1.2556,157.68,157.6,9.76]
[1727465930635,11.0156,157.68,157.63,9.76]
[1727465931129,3.1709,157.64,157.63,9.76]
[1727465931333,9.85792581,157.67,157.63,9.76]
[1727465931634,1.2556,157.68,157.65,9.76]
[1727465931837,3.1707,157.66,157.65,9.76]
[1727465936736,3.1713,157.63,157.59,3.1718]
[1727465936934,11.0156,157.68,157.62,9.76]
[1727465937936,3.1711,157.63,157.62,9.76]
[1727465939433,11.0156,157.68,157.58,3.1721]
[1727465939634,11.0156,157.68,157.62,9.76]
[1727465940345,3.1711,157.63,157.62,9.76]
[1727465943342,3.1722,157.58,157.56,3.9678]
[1727465943644,3.1722,157.58,157.57,9.76]
[1727465943846,1.2556,157.68,157.57,3.1722]
[1727465943847,3.1718,157.6,157.57,3.1722]
[1727465944150,1.2556,157.68,157.59,9.76]
[1727465944352,9.76,157.67,157.62,9.76]
[1727465944738,3.1711,157.63,157.56,3.9498]
[1727465944942,1.2556,157.68,157.62,9.76]
[1727465945142,1.2556,157.68,157.66,9.76]
[1727465945342,3.1703,157.67,157.66,9.76]
[1727465946248,1.2556,157.68,157.65,9.76]
[1727465946954,3.1705,157.66,157.65,9.76]
[1727465947850,11.0156,157.68,157.63,9.76]
[1727465948646,3.1709,157.64,157.63,9.76]
[1727465949851,3.1708,157.65,157.63,9.76]
[1727465950059,3.1708,157.65,157.64,9.76]
[1727465950860,3.1706,157.66,157.64,9.76]
[1727465952546,3.1707,157.65,157.64,9.76]
[1727465956559,3.1711,157.64,157.63,9.76]
[1727465958257,9.76,157.67,157.56,3.9498]
[1727465958455,9.76,157.66,157.61,9.76]
[1727465958663,9.76,157.67,157.61,9.76]
[1727465958859,3.171,157.64,157.62,9.76]
[1727465959160,9.76,157.67,157.62,9.76]
[1727465959362,3.1711,157.64,157.62,9.76]
[1727465959660,9.76,157.68,157.62,9.76]
[1727465960860,3.1711,157.63,157.62,9.76]
[1727465962463,3.1716,157.61,157.56,3.9498]
[1727465962657,3.1716,157.61,157.6,9.76]
[1727465962969,3.1716,157.61,157.58,3.172]
[1727465963266,9.76,157.64,157.58,9.76]
[1727465963760,3.1719,157.59,157.58,9.76]
[1727465964271,9.76,157.64,157.58,9.76]
[1727465964470,9.76,157.64,157.59,9.76]
[1727465965468,3.1718,157.6,157.59,9.76]
[1727465965671,9.76,157.61,157.5,68.52]
[1727465965872,9.76,157.61,157.51,4.0861]
[1727465966068,9.76,157.61,157.55,9.76]
[1727465967161,3.1724,157.57,157.55,9.76]
[1727465968771,9.76,157.61,157.56,9.76]
[1727465968772,3.1722,157.58,157.56,9.76]
[1727465968967,9.76,157.63,157.57,9.76]
[1727465969174,9.76,157.63,157.59,9.76]
[1727465969375,3.1719,157.6,157.59,9.76]
[1727465981696,3.1722,157.58,157.57,9.76]
[1727465981897,9.76,157.62,157.56,9.76]
[1727465982376,9.76,157.62,157.57,9.76]
[1727465982997,3.1721,157.59,157.57,9.76]
[1727465983981,3.1721,157.58,157.57,9.76]
[1727465990908,3.1724,157.57,157.56,9.76]
[1727465991111,9.76,157.58,157.51,2.729]
[1727465991312,9.76,157.58,157.53,9.76]
[1727465991507,3.1731,157.54,157.53,9.76]
[1727465991915,9.76,157.56,157.51,2.729]
[1727465992211,9.76,157.56,157.51,12.489]
[1727465993010,3.1731,157.54,157.52,9.76]
[1727465993205,9.76,157.6,157.53,9.76]
[1727465993416,9.76,157.6,157.55,9.76]
[1727465993713,9.76,157.59,157.51,2.729]
[1727465993906,9.76,157.59,157.5,54.02482658]
[1727465993907,9.76,157.54,157.5,54.02482658]
[1727465994310,9.76,157.56,157.51,9.76]
[1727465994824,3.1734,157.52,157.5,54.02482658]
[1727465995109,3.1734,157.52,157.5,63.78482658]
[1727465995314,3.1734,157.52,157.5,9.76]
[1727465995719,3.1734,157.52,157.51,9.76]
[1727465995913,3.1732,157.53,157.51,9.76]
[1727466000118,3.1734,157.52,157.51,9.76]
[1727466000313,9.76,157.54,157.48,1.2637]
[1727466000518,9.76,157.53,157.48,9.76]
[1727466000719,9.76,157.52,157.41,1.3905]
[1727466000911,9.76,157.52,157.47,9.76]
[1727466001111,9.76,157.5,157.47,9.76]
[1727466001324,3.1742,157.48,157.47,9.76]
[1727466002316,3.1742,157.48,157.41,1.3905]
[1727466002317,3.1744,157.47,157.45,9.76]
[1727466002920,9.76,157.5,157.45,9.76]
[1727466003517,3.1743,157.48,157.46,9.76]
[1727466004924,3.1744,157.47,157.46,9.76]
[1727466005224,9.76,157.49,157.41,1.3905]
[1727466005421,9.76,157.49,157.44,9.76]
[1727466005621,9.76,157.48,157.43,3.1751]
[1727466005824,9.76,157.48,157.44,9.76]
[1727466006618,3.1744,157.47,157.44,9.76]
[1727466007117,3.1744,157.47,157.4,2.6705]
[1727466007118,3.1753,157.43,157.4,1.3861]
[1727466007316,9.76,157.44,157.4,9.76]
[1727466007718,3.1754,157.42,157.4,9.76]
[1727466008724,1.3836,157.52,157.34,2.6648]
[1727466008725,9.76,157.41,157.34,2.6648]
[1727466008913,9.76,157.41,157.29,3.16468941]
[1727466008914,9.76,157.38,157.29,3.16468941]
[1727466009229,9.76,157.36,157.27,2.6193]
[1727466009428,9.76,157.4,157.34,9.76]
[1727466009613,3.1765,157.37,157.34,9.76]
[1727466009814,9.76,157.4,157.35,9.76]
[1727466010215,3.1764,157.37,157.35,9.76]
[1727466010420,9.76,157.4,157.35,9.76]
[1727466010612,11.0261,157.41,157.36,9.76]
[1727466010819,3.1761,157.39,157.36,9.76]
[1727466011419,3.1758,157.4,157.36,9.76]
[1727466011815,11.0261,157.41,157.36,9.76]
[1727466012424,9.76,157.4,157.33,3.177]
[1727466012619,9.76,157.4,157.34,9.76]
[1727466013317,3.1765,157.37,157.29,3.15286577]
[1727466013518,3.1765,157.37,157.27,2.6193]
[1727466013519,3.1765,157.37,157.33,9.76]
[1727466014329,3.1766,157.36,157.33,9.76]
[1727466015231,3.177,157.35,157.27,5.84663532]
[1727466015527,9.76,157.37,157.31,9.76]
[1727466016036,9.76,157.35,157.31,9.76]
[1727466016325,9.76,157.35,157.3,9.76]
[1727466016527,3.1773,157.33,157.29,3.1779]
[1727466016729,9.76,157.35,157.3,9.76]
[1727466017031,3.177,157.34,157.3,12.9377]
[1727466017825,3.1768,157.35,157.32,9.76]
[1727466018230,9.76,157.37,157.32,9.76]
[1727466018628,9.76,157.38,157.33,9.76]
[1727466018923,1.2661,157.41,157.33,3.1772]
[1727466019129,3.1765,157.37,157.34,9.76]
[1727466019433,9.76,157.39,157.34,12.9369]
[1727466019629,9.76,157.39,157.34,9.76]
[1727466020320,9.76,157.38,157.27,5.87469909]
[1727466020637,9.76,157.36,157.31,9.76]
[1727466021032,3.177,157.35,157.31,9.76]
[1727466021228,9.76,157.36,157.31,9.76]
[1727466022138,3.1771,157.34,157.31,9.76]
[1727466022635,3.177,157.34,157.31,9.76]
[1727466022838,9.76,157.35,157.31,9.76]
[1727466023142,3.1772,157.33,157.3,9.76]
[1727466023325,9.76,157.35,157.3,9.76]
[1727466023326,9.76,157.35,157.3,12.9376]
[1727466023726,3.1771,157.34,157.3,12.9376]
[1727466023937,9.76,157.35,157.3,9.76]
[1727466024533,3.1773,157.33,157.3,9.76]
[1727466024740,3.1773,157.33,157.3,12.9376]
[1727466024942,3.177,157.34,157.31,9.76]
[1727466025536,3.177,157.34,157.31,12.9375]
[1727466027937,3.1772,157.33,157.3,3.1777]
[1727466028534,3.1772,157.33,157.31,3.1776]
[1727466028730,3.1774,157.32,157.28,9.76]
[1727466028935,9.76,157.32,157.27,2.6193]
[1727466029134,9.76,157.32,157.27,11.0962]
[1727466029443,3.1777,157.31,157.28,9.76]
[1727466029644,9.76,157.32,157.28,9.76]
[1727466029844,12.9374,157.32,157.29,3.178]
[1727466030143,9.76,157.32,157.29,3.178]
[1727466030945,3.1776,157.31,157.29,3.178]
[1727466031236,9.76,157.33,157.29,12.938]
[1727466031441,3.1775,157.32,157.29,12.938]
[1727466033650,3.1776,157.31,157.29,12.938]
[1727466034343,3.1775,157.32,157.29,12.938]
[1727466034743,3.1775,157.32,157.3,3.1778]
[1727466035138,9.76,157.34,157.28,3.1781]
[1727466035338,9.76,157.33,157.28,9.76]
[1727466035738,3.1776,157.32,157.29,3.1779]
[1727466035942,3.1776,157.32,157.28,9.76]
[1727466036343,12.9372,157.33,157.28,9.76]
[1727466037037,3.1772,157.33,157.3,12.9376]
[1727466037434,1.3196,157.36,157.31,9.76]
[1727466037435,3.1767,157.36,157.31,9.76]
[1727466037738,93.53312389,157.37,157.34,9.76]
[1727466038242,9.76,157.36,157.31,9.76]
[1727466038638,9.76,157.36,157.31,12.9375]
[1727466038847,9.76,157.35,157.31,9.76]
[1727466039251,3.177,157.34,157.31,9.76]
[1727466040149,3.177,157.34,157.31,12.9375]
[1727466042147,3.177,157.34,157.32,3.1774]
[1727466042345,3.177,157.34,157.32,12.9374]
[1727466043149,3.1769,157.35,157.32,12.9374]
[1727466043447,9.76,157.39,157.33,9.76]
[1727466043745,9.76,157.39,157.33,12.937]
[1727466043951,9.76,157.39,157.33,9.76]
[1727466044348,3.1765,157.37,157.34,3.1769]
[1727466044849,9.76,157.37,157.27,4.59205457]
[1727466045054,9.76,157.34,157.3,9.76]
[1727466045554,3.1771,157.34,157.31,3.1775]
[1727466045742,3.1771,157.34,157.3,9.76]
[1727466045939,3.1771,157.34,157.31,12.9374]
[1727466046153,3.1769,157.35,157.31,9.76]